bitfinex/quotes_BTCUSD_20251027
["timestamp","ask_amount","ask_price","bid_price","bid_amount"]
[1761563398128,1.07164204,115430.0,115420.0,0.5914]
[1761563398329,1.0716429,115430.0,115420.0,0.5914]
[1761563398835,1.0716429,115430.0,115420.0,0.003]
[1761563399082,1.0716429,115430.0,115420.0,0.5914]
[1761563399843,1.0716429,115430.0,115420.0,0.003]
[1761563400045,1.0716429,115430.0,115420.0,0.5914]
[1761563400242,1.08788432,115430.0,115420.0,0.5914]
[1761563401447,0.65529324,115430.0,115420.0,0.5914]
[1761563401647,1.0716429,115430.0,115420.0,0.5914]
[1761563401983,1.0716429,115430.0,115420.0,0.76468019]
[1761563401984,0.54923281,115430.0,115420.0,0.76468019]
[1761563402184,0.53053323,115430.0,115420.0,0.76468019]
[1761563402683,0.19053323,115430.0,115420.0,0.76468019]
[1761563404260,0.62312431,115430.0,115420.0,0.76468019]
[1761563406029,0.67692545,115430.0,115420.0,0.76468019]
[1761563406158,0.50366027,115430.0,115420.0,0.76468019]
[1761563406371,0.67692545,115430.0,115420.0,0.76468019]
[1761563412513,0.67691838,115430.0,115420.0,0.76468019]
[1761563414150,0.19052616,115430.0,115420.0,0.76468019]
[1761563414371,0.67691838,115430.0,115420.0,0.76468019]
[1761563417900,0.67691838,115430.0,115420.0,0.5914]
[1761563418179,0.67691838,115430.0,115420.0,0.76468019]
[1761563418811,0.19052616,115430.0,115420.0,0.76468019]
[1761563419161,0.67691838,115430.0,115420.0,0.76468019]
[1761563420242,0.67691838,115430.0,115420.0,0.5914]
[1761563420444,0.67691838,115430.0,115420.0,0.76468019]
[1761563420649,0.19052616,115430.0,115420.0,0.76468019]
[1761563420858,0.67691838,115430.0,115420.0,0.76468019]
[1761563422883,0.66825525,115430.0,115420.0,0.76468019]
[1761563428628,0.66825877,115430.0,115420.0,0.76468019]
[1761563431855,0.66825877,115430.0,115420.0,0.5914]
[1761563432253,0.66825877,115430.0,115420.0,0.76468019]
[1761563438267,0.66825877,115430.0,115420.0,0.5914]
[1761563438488,0.66825877,115430.0,115420.0,0.76468019]
[1761563441729,0.18186655,115430.0,115420.0,0.76468019]
[1761563441926,0.66825877,115430.0,115420.0,0.76468019]
[1761563442672,0.18186655,115430.0,115420.0,0.76468019]
[1761563442912,0.00860137,115430.0,115420.0,0.76468019]
[1761563443109,0.49499359,115430.0,115420.0,0.76468019]
[1761563443695,0.00860137,115430.0,115420.0,0.76468019]
[1761563443833,0.000485,115430.0,115420.0,1.25107241]
[1761563444236,0.000485,115430.0,115420.0,0.8544992]
[1761563444427,0.000485,115430.0,115420.0,1.34089142]
[1761563444621,0.000485,115430.0,115420.0,1.36688605]
[1761563444827,0.000485,115430.0,115420.0,1.40306833]
[1761563445352,0.000485,115430.0,115420.0,0.91667611]
[1761563445504,0.000485,115430.0,115420.0,1.40306833]
[1761563445850,0.000485,115430.0,115420.0,1.40006833]
[1761563446011,0.000485,115430.0,115420.0,1.40806833]
[1761563447598,0.000485,115430.0,115420.0,1.74806833]
[1761563447839,1e-08,115430.0,115420.0,1.82031647]
[1761563448208,1e-08,115430.0,115420.0,2.30670869]
[1761563449193,1e-08,115430.0,115420.0,2.25446052]
[1761563449386,1e-08,115430.0,115420.0,2.30956306]
[1761563449604,0.00020579,115470.0,115460.0,0.20940244]
[1761563449812,9.60159014,115500.0,115460.0,0.20940244]
[1761563449813,9.60159014,115500.0,115490.0,0.17317516]
[1761563450031,10.09606984,115500.0,115490.0,0.3806]
[1761563450231,10.09606977,115500.0,115490.0,0.55377516]
[1761563450448,10.08859955,115500.0,115490.0,0.55377516]
[1761563451380,9.60220733,115500.0,115490.0,0.55377516]
[1761563451722,9.60220733,115500.0,115490.0,0.64359417]
[1761563452767,9.60520733,115500.0,115490.0,1.12998639]
[1761563453182,9.60420733,115500.0,115490.0,1.12998639]
[1761563453775,9.60420733,115500.0,115490.0,0.64359417]
[1761563454179,9.60420733,115500.0,115490.0,1.12998639]
[1761563454385,10.09059955,115500.0,115490.0,0.60961516]
[1761563454583,10.27181109,115500.0,115490.0,0.17317516]
[1761563454782,10.09865101,115500.0,115490.0,0.76161516]
[1761563454980,9.61225879,115500.0,115490.0,0.76161516]
[1761563458717,9.78541896,115500.0,115490.0,0.76161516]
[1761563459382,10.27181118,115500.0,115490.0,0.76161516]
[1761563460364,10.27181118,115500.0,115490.0,0.58844]
[1761563460577,0.17317516,115490.0,115470.0,0.1818395]
[1761563460795,0.66761884,115490.0,115480.0,0.76151016]
[1761563461769,0.66761884,115490.0,115480.0,0.58832]
[1761563461975,0.66761884,115490.0,115480.0,0.76151016]
[1761563462635,0.66761884,115490.0,115480.0,0.58832]
[1761563463006,0.66761884,115490.0,115480.0,0.76151016]
[1761563463209,0.00805146,115490.0,115480.0,0.76151016]
[1761563463382,0.18122662,115490.0,115480.0,0.76151016]
[1761563463581,0.00805146,115490.0,115480.0,0.76151016]
[1761563464306,0.18122662,115490.0,115480.0,0.76151016]
[1761563465469,0.00805146,115490.0,115480.0,0.76151016]
[1761563466213,0.66761884,115490.0,115480.0,0.76151016]
[1761563466574,0.18163812,115490.0,115480.0,0.20776]
[1761563466808,0.66803034,115490.0,115480.0,0.58828]
[1761563467002,0.69401789,115490.0,115480.0,0.58828]
[1761563467739,0.63959534,115490.0,115480.0,0.58828]
[1761563468437,0.03445051,115490.0,115480.0,0.76147016]
[1761563469343,0.00846296,115490.0,115480.0,0.76147016]
[1761563474969,0.00846296,115490.0,115480.0,1.28325884]
[1761563478667,0.00846296,115490.0,115480.0,1.28299775]
[1761563478882,0.00846296,115490.0,115480.0,0.85102808]
[1761563479980,0.00846296,115490.0,115480.0,1.28299775]
[1761563480747,0.00846296,115490.0,115480.0,0.85102808]
[1761563480956,0.00846296,115490.0,115480.0,1.28299775]
[1761563481458,0.00846296,115490.0,115480.0,0.85102808]
[1761563484644,0.00851346,115490.0,115480.0,0.85102808]
[1761563489770,0.18168862,115490.0,115480.0,0.76151016]
[1761563490797,0.18168862,115490.0,115480.0,0.58832]
[1761563494035,0.18168862,115490.0,115480.0,0.76151016]
[1761563494925,0.18168862,115490.0,115480.0,0.58832]
[1761563495128,0.18168862,115490.0,115470.0,0.09004]
[1761563495327,0.60515983,115480.0,115470.0,0.09004]
[1761563495528,0.61326179,115480.0,115470.0,0.6784]
[1761563495792,0.6392495,115480.0,115470.0,0.6784]
[1761563496114,0.20727983,115480.0,115470.0,0.6784]
[1761563496302,0.6392495,115480.0,115470.0,0.6784]
[1761563496802,0.20727983,115480.0,115470.0,0.6784]
[1761563497002,0.6392495,115480.0,115470.0,0.6784]
[1761563497257,0.20727983,115480.0,115470.0,0.6784]
[1761563497474,0.6392495,115480.0,115470.0,0.6784]
[1761563497624,1.06906851,115480.0,115470.0,0.2978]
[1761563497825,1.08773831,115480.0,115470.0,0.6784]
[1761563498241,1.06906851,115480.0,115470.0,0.6784]
[1761563498576,0.17323516,115450.0,115440.0,0.20874128]
[1761563498723,0.61330635,115450.0,115440.0,0.58966731]
[1761563498931,0.18133668,115450.0,115440.0,0.58966731]
[1761563499203,0.18133668,115450.0,115440.0,0.58970731]
[1761563499406,0.18132988,115450.0,115440.0,0.58970731]
[1761563499611,0.17323516,115450.0,115440.0,0.58970731]
[1761563499786,0.60520483,115450.0,115440.0,0.58970731]
[1761563500450,0.60620483,115450.0,115440.0,0.58970731]
[1761563500656,0.17423516,115450.0,115440.0,0.58970731]
[1761563500985,0.17423516,115450.0,115440.0,0.76295748]
[1761563501798,0.17323516,115450.0,115440.0,0.76295748]
[1761563502196,0.17923516,115450.0,115440.0,0.76295748]
[1761563504339,0.2052299,115450.0,115440.0,0.76295748]
[1761563504541,0.17923516,115450.0,115440.0,0.58970731]
[1761563505005,0.17923516,115450.0,115440.0,0.76295748]
[1761563506603,0.006,115450.0,115440.0,0.76295748]
[1761563506818,0.17923516,115450.0,115440.0,0.76295748]
[1761563507609,0.17323516,115450.0,115440.0,0.76295748]
[1761563508016,0.17323516,115450.0,115440.0,0.76495748]
[1761563508753,0.1992149,115460.0,115440.0,0.76495748]
[1761563509041,0.1992149,115460.0,115450.0,0.01732351]
[1761563510246,0.1992149,115460.0,115450.0,0.19055867]
[1761563510447,0.1992149,115460.0,115450.0,0.17323516]
[1761563511467,0.2002149,115460.0,115450.0,0.17323516]
[1761563511673,0.2012149,115460.0,115450.0,0.17323516]
[1761563511881,0.002,115460.0,115450.0,0.17323516]
[1761563512916,0.001,115460.0,115450.0,0.17323516]
[1761563513765,0.17322016,115460.0,115450.0,0.17323516]
[1761563514188,0.17322016,115460.0,115450.0,0.17723516]
[1761563514422,0.63983982,115470.0,115450.0,0.17723516]
[1761563514614,0.63983982,115470.0,115460.0,0.15228]
[1761563516142,0.20787015,115470.0,115460.0,0.15228]
[1761563516353,0.20787015,115470.0,115460.0,0.16960201]
[1761563516529,0.20787015,115470.0,115460.0,0.34282217]
[1761563516843,0.20787015,115470.0,115460.0,0.32550016]
[1761563517369,0.20787015,115470.0,115460.0,0.38290016]
[1761563517786,0.20787015,115470.0,115460.0,0.20968]
[1761563518395,0.63983982,115470.0,115460.0,0.20968]
[1761563518801,0.20787015,115470.0,115460.0,0.20968]
[1761563519941,0.63983982,115470.0,115460.0,0.20968]
[1761563520448,0.63983982,115470.0,115460.0,0.002]
[1761563520624,0.63983982,115470.0,115460.0,0.59068]
[1761563520845,1.07774778,115470.0,115460.0,0.43844]
[1761563521071,1.07774778,115470.0,115460.0,0.59068]
[1761563521684,1.07774778,115470.0,115460.0,0.2286]
[1761563521933,1.07774778,115470.0,115460.0,0.38084]
[1761563522134,1.08174778,115470.0,115460.0,0.38084]
[1761563522335,1.10038618,115470.0,115460.0,0.38084]
[1761563522566,1.10138618,115470.0,115460.0,0.38084]
[1761563522784,1.10138618,115470.0,115440.0,0.20894731]
[1761563522785,0.17323516,115450.0,115440.0,0.20894731]
[1761563522997,0.69502384,115450.0,115440.0,0.43754731]
[1761563523196,0.69502384,115450.0,115440.0,0.58978731]
[1761563523351,0.70311782,115450.0,115440.0,0.58978731]
[1761563523538,0.72911614,115450.0,115440.0,0.58978731]
[1761563524162,1.15893515,115450.0,115440.0,0.00110731]
[1761563524362,1.06911614,115450.0,115440.0,0.23170731]
[1761563524564,1.08776463,115450.0,115440.0,0.38394731]
[1761563524772,1.08776463,115450.0,115440.0,0.23170731]
[1761563524773,1.5197343,115450.0,115440.0,0.23170731]
[1761563524947,1.5197343,115450.0,115440.0,0.38194731]
[1761563525369,1.54907703,115450.0,115440.0,0.38194731]
[1761563525554,1.57045102,115450.0,115440.0,0.38194731]
[1761563526034,1.57145102,115450.0,115440.0,0.38194731]
[1761563526146,1.11613862,115450.0,115440.0,0.38194731]
[1761563526343,1.13948135,115450.0,115440.0,0.38194731]
[1761563527974,1.13948135,115450.0,115440.0,0.00110731]
[1761563528181,1.13948135,115450.0,115440.0,0.38198731]
[1761563528867,1.57145102,115450.0,115440.0,0.38198731]
[1761563529369,1.54810829,115450.0,115440.0,0.38198731]
[1761563529790,1.65714923,115450.0,115440.0,0.38198731]
[1761563530516,2.26053523,115450.0,115440.0,0.38198731]
[1761563533052,2.28387796,115450.0,115440.0,0.38198731]
[1761563535319,2.26053523,115450.0,115440.0,0.38198731]
[1761563537239,1.63577524,115450.0,115440.0,0.38198731]
[1761563540033,1.99225024,115450.0,115440.0,0.38198731]
[1761563541494,1.01926996,115450.0,115440.0,0.38198731]
[1761563541705,1.99225024,115450.0,115440.0,0.38198731]
[1761563545345,2.01559297,115450.0,115440.0,0.38198731]
[1761563545770,2.03176412,115450.0,115440.0,0.38198731]
[1761563546565,1.03478684,115450.0,115440.0,0.38198731]
[1761563546799,1.18879898,115450.0,115440.0,0.38198731]
[1761563547010,1.1492851,115450.0,115440.0,0.38198731]
[1761563548119,0.66279496,115450.0,115440.0,0.38198731]
[1761563548320,1.1492851,115450.0,115440.0,0.38198731]
[1761563549320,1.27865159,115450.0,115440.0,0.38198731]
[1761563550767,1.18883258,115450.0,115440.0,0.38198731]
[1761563553741,1.1492851,115450.0,115440.0,0.38198731]
[1761563553937,1.1492851,115450.0,115440.0,0.55523748]
[1761563554319,0.66279496,115450.0,115440.0,0.55523748]
[1761563554522,0.8092851,115450.0,115440.0,0.55523748]
[1761563554756,0.63679664,115450.0,115440.0,0.55523748]
[1761563555252,0.61814815,115450.0,115440.0,0.55523748]
[1761563555478,0.61714815,115450.0,115440.0,0.55523748]
[1761563555712,0.52732914,115450.0,115440.0,0.55523748]
[1761563555919,0.52232914,115450.0,115440.0,0.55523748]
[1761563556168,0.52632914,115450.0,115440.0,0.55523748]
[1761563557090,1.01281928,115450.0,115440.0,0.38198731]
[1761563557442,1.01281928,115450.0,115440.0,0.55523748]
[1761563559921,1.01281928,115450.0,115440.0,0.38198731]
[1761563560120,0.52632914,115450.0,115440.0,0.38198731]
[1761563560280,1.01281928,115450.0,115440.0,0.38198731]
[1761563561931,0.52632914,115450.0,115440.0,0.38198731]
[1761563562131,0.35309398,115450.0,115440.0,0.55523748]
[1761563562338,0.51823516,115450.0,115440.0,0.55523748]
[1761563564240,1.0047253,115450.0,115440.0,0.38198731]
[1761563564501,1.0047253,115450.0,115440.0,0.55523748]
[1761563565745,1.0047253,115450.0,115440.0,0.38198731]
[1761563565950,1.0047253,115450.0,115440.0,0.58978731]
[1761563566282,1.09454431,115450.0,115440.0,0.58978731]
[1761563566488,1.10264371,115450.0,115440.0,0.58978731]
[1761563571711,1.10264371,115450.0,115440.0,0.00110731]
[1761563571912,1.58913385,115450.0,115440.0,0.43758731]
[1761563572151,1.58913385,115450.0,115440.0,0.58970731]
[1761563572351,1.63380114,115450.0,115440.0,0.58970731]
[1761563573297,1.72362015,115450.0,115440.0,0.58970731]
[1761563573978,1.63380114,115450.0,115440.0,0.58970731]
[1761563574791,1.60380114,115450.0,115440.0,0.58970731]
[1761563574948,0.63082086,115450.0,115440.0,0.58970731]
[1761563575151,1.60380114,115450.0,115440.0,0.58970731]
[1761563575753,1.62000731,115450.0,115440.0,0.43758731]
[1761563575958,1.62000731,115450.0,115440.0,0.58974731]
[1761563579435,2.45270932,115450.0,115440.0,0.58974731]
[1761563579847,2.28231431,115450.0,115440.0,0.58974731]
[1761563580049,2.12126031,115450.0,115440.0,0.58974731]
[1761563580450,2.03700104,115450.0,115440.0,0.58974731]
[1761563580653,2.02581704,115450.0,115440.0,0.58974731]
[1761563581405,2.00247431,115450.0,115440.0,0.58974731]
[1761563583199,2.09229332,115450.0,115440.0,0.58974731]
[1761563584570,2.00247431,115450.0,115440.0,0.58974731]
[1761563586146,2.002474,115450.0,115440.0,0.38186731]
[1761563588017,0.63082055,115450.0,115440.0,0.38186731]
[1761563588219,1.11731069,115450.0,115440.0,0.38186731]
[1761563591291,1.1092116,115450.0,115440.0,0.38186731]
[1761563591498,1.11731096,115450.0,115440.0,0.38186731]
[1761563591695,1.06311649,115450.0,115440.0,0.38186731]
[1761563592817,1.06311701,115450.0,115440.0,0.38186731]
[1761563594172,1.07932179,115450.0,115440.0,0.38186731]
[1761563598252,1.10266452,115450.0,115440.0,0.38186731]
[1761563602188,1.10268914,115450.0,115440.0,0.38186731]
[1761563606840,1.07668863,115450.0,115440.0,0.38186731]
[1761563607412,1.07669474,115450.0,115440.0,0.38186731]
[1761563610561,1.0371165,115450.0,115440.0,0.38186731]
[1761563612540,1.05334891,115450.0,115440.0,0.38186731]
[1761563628605,1.07669164,115450.0,115440.0,0.38186731]
[1761563631955,1.07670979,115450.0,115440.0,0.38186731]
[1761563633971,1.07671516,115450.0,115440.0,0.38186731]
[1761563636171,0.64441949,115450.0,115440.0,0.38186731]
[1761563636396,1.07671516,115450.0,115440.0,0.38186731]
[1761563636600,0.64441949,115450.0,115440.0,0.38186731]
[1761563636816,0.64441949,115450.0,115440.0,0.58974731]
[1761563637035,0.60483955,115450.0,115440.0,0.58974731]
[1761563638069,0.58617277,115450.0,115440.0,0.58974731]
[1761563640532,1.01846844,115450.0,115440.0,0.58974731]
[1761563641606,1.01846844,115450.0,115440.0,0.58962731]
[1761563642174,0.58617277,115450.0,115440.0,0.58962731]
[1761563642374,1.01846844,115450.0,115440.0,0.58962731]
[1761563646350,1.01846844,115450.0,115440.0,0.00110731]
[1761563646564,1.03715416,115450.0,115440.0,0.58958731]
[1761563648407,1.01846844,115450.0,115440.0,0.58958731]
[1761563648819,1.03715404,115450.0,115440.0,0.58958731]
[1761563649974,1.03715404,115450.0,115440.0,0.00110731]
[1761563650191,1.03715404,115450.0,115440.0,0.58962731]
[1761563653856,1.09120408,115450.0,115440.0,0.58962731]
[1761563654291,1.09120408,115450.0,115440.0,0.00110731]
[1761563654495,1.09120408,115450.0,115440.0,0.58958731]
[1761563660193,1.08308548,115450.0,115440.0,0.58958731]
[1761563660747,1.0911908,115450.0,115440.0,0.58958731]
[1761563660970,1.08308548,115450.0,115440.0,0.58958731]
[1761563661410,1.09119104,115450.0,115440.0,0.58958731]
[1761563661605,1.06439988,115450.0,115440.0,0.58958731]
[1761563661813,1.07250566,115450.0,115440.0,0.58958731]
[1761563662221,1.06439988,115450.0,115440.0,0.58958731]
[1761563663186,1.07250599,115450.0,115440.0,0.58958731]
[1761563663778,0.58616028,115450.0,115440.0,0.58958731]
[1761563664234,1.07250599,115450.0,115440.0,0.58958731]
[1761563668295,1.07250599,115450.0,115440.0,0.00110731]
[1761563668494,1.07250599,115450.0,115440.0,0.43762731]
[1761563668495,1.65412988,115450.0,115440.0,0.43762731]
[1761563668757,1.09118867,115450.0,115440.0,0.54366731]
[1761563669321,1.09118867,115450.0,115440.0,0.00110731]
[1761563669522,1.09118867,115450.0,115440.0,0.58958731]
[1761563678890,2.16972038,115450.0,115440.0,0.00110731]
[1761563679108,2.16972038,115450.0,115440.0,0.38170731]
[1761563679109,2.18594425,115450.0,115440.0,0.38170731]
[1761563679321,2.35623617,115450.0,115440.0,0.38170731]
[1761563680219,2.26641716,115450.0,115440.0,0.38170731]
[1761563681288,2.23528859,115450.0,115440.0,0.38170731]
[1761563687473,2.22718248,115450.0,115440.0,0.38170731]
[1761563687741,2.23528058,115450.0,115440.0,0.38170731]
[1761563692081,2.02795458,115450.0,115440.0,0.38170731]
[1761563694019,2.16395587,115450.0,115440.0,0.38178731]
[1761563694361,2.07413686,115450.0,115440.0,0.38178731]
[1761563699286,2.10526543,115450.0,115440.0,0.38178731]
[1761563704282,1.64309458,115450.0,115440.0,0.38178731]
[1761563704920,1.13074726,115450.0,115440.0,0.38178731]
[1761563706101,1.61709297,115450.0,115440.0,0.38178731]
[1761563708314,0.67553012,115450.0,115440.0,0.38178731]
[1761563708516,1.64822154,115450.0,115440.0,0.38178731]
[1761563708694,1.61709297,115450.0,115440.0,0.38178731]
[1761563710674,0.64440155,115450.0,115440.0,0.38178731]
[1761563710886,1.61709297,115450.0,115440.0,0.38178731]
[1761563711085,1.13074726,115450.0,115440.0,0.38178731]
[1761563711287,1.61709297,115450.0,115440.0,0.38178731]
[1761563713803,1.07675336,115450.0,115440.0,0.38178731]
[1761563714444,0.75052949,115450.0,115440.0,0.38178731]
[1761563714669,0.72718676,115450.0,115440.0,0.38178731]
[1761563714883,0.63483495,115450.0,115440.0,0.38178731]
[1761563716271,0.61615227,115450.0,115440.0,0.38178731]
[1761563716593,1.04850408,115450.0,115440.0,0.38178731]
[1761563721323,1.04850408,115450.0,115440.0,0.40778484]
[1761563721324,0.52633326,115450.0,115440.0,0.40778484]
[1761563725796,0.95868507,115450.0,115440.0,0.40778484]
[1761563727672,0.52633326,115450.0,115440.0,0.40778484]
[1761563728689,0.52633326,115450.0,115440.0,0.58103501]
[1761563728818,0.95868507,115450.0,115440.0,0.40778484]
[1761563729232,0.52633326,115450.0,115440.0,0.40778484]
[1761563729657,0.52533326,115450.0,115440.0,0.40778484]
[1761563729893,0.52233326,115450.0,115440.0,0.40778484]
[1761563730499,0.52133326,115450.0,115440.0,0.40778484]
[1761563730919,0.52233326,115450.0,115440.0,0.40778484]
[1761563731345,0.52333326,115450.0,115440.0,0.40778484]
[1761563731733,0.002,115450.0,115440.0,1.10320583]
[1761563731932,0.002,115450.0,115440.0,1.13938811]
[1761563732513,0.00020577,115480.0,115470.0,0.17320516]
[1761563732875,0.34020577,115480.0,115470.0,0.38084516]
[1761563733078,0.34829859,115480.0,115470.0,0.38084516]
[1761563733200,0.34020577,115480.0,115470.0,0.40683445]
[1761563734010,0.00020577,115480.0,115470.0,0.83918626]
[1761563734201,0.00020577,115480.0,115470.0,0.84118626]
[1761563734416,0.00020577,115480.0,115470.0,0.40883445]
[1761563734563,0.00020577,115480.0,115470.0,0.84118626]
[1761563736426,0.00020577,115480.0,115470.0,0.40883445]
[1761563739932,0.00020577,115480.0,115470.0,0.25659445]
[1761563740179,0.43255758,115480.0,115470.0,0.49883445]
[1761563740583,0.00020577,115480.0,115470.0,0.49883445]
[1761563741003,0.00827028,115480.0,115470.0,0.49887445]
[1761563741217,0.00826988,115480.0,115470.0,0.49887445]
[1761563743767,0.00827013,115480.0,115470.0,0.49887445]
[1761563745067,0.00827013,115480.0,115470.0,0.70667445]
[1761563746323,0.18146029,115480.0,115470.0,0.70667445]
[1761563747147,0.6138121,115480.0,115470.0,0.53346929]
[1761563747353,0.6138121,115480.0,115470.0,0.70667445]
[1761563747565,0.6138121,115480.0,115470.0,0.53346929]
[1761563748199,0.6138121,115480.0,115470.0,0.70667445]
[1761563748551,0.6138121,115480.0,115470.0,0.70467445]
[1761563748841,0.6148121,115480.0,115470.0,0.70467445]
[1761563749057,0.6158121,115480.0,115470.0,0.70467445]
[1761563749221,0.18346029,115480.0,115470.0,0.70467445]
[1761563749441,0.18346029,115480.0,115470.0,0.53146929]
[1761563749610,0.18346029,115480.0,115470.0,0.70467445]
[1761563749817,0.18346029,115480.0,115470.0,0.87783445]
[1761563750060,0.18346029,115480.0,115470.0,0.70462929]
[1761563752257,0.6158121,115480.0,115470.0,0.70462929]
[1761563752488,1.04563111,115480.0,115470.0,0.67856]
[1761563759292,1.04563111,115480.0,115470.0,0.58852]
[1761563759499,1.04565709,115480.0,115470.0,0.58852]
[1761563760100,1.06430584,115480.0,115470.0,0.58852]
[1761563761100,1.06431842,115480.0,115470.0,0.58852]
[1761563761696,0.5421476,115480.0,115470.0,0.58852]
[1761563761931,0.01029611,115480.0,115470.0,0.76172516]
[1761563762993,0.00220577,115480.0,115470.0,0.78771087]
[1761563763199,0.01030417,115480.0,115470.0,0.78771087]
[1761563765023,0.01030417,115480.0,115470.0,0.76172516]
[1761563766896,0.01030417,115480.0,115470.0,1.28389598]
[1761563768183,0.01030417,115480.0,115470.0,0.85154417]
[1761563768950,0.01030417,115480.0,115470.0,0.94158417]
[1761563769775,0.00830417,115480.0,115470.0,0.94158417]
[1761563770196,0.00830417,115480.0,115470.0,0.94558417]
[1761563771424,0.00020577,115480.0,115470.0,0.94558417]
[1761563775783,0.00020577,115480.0,115470.0,1.43140077]
[1761563776410,0.48602237,115480.0,115470.0,0.85576516]
[1761563776615,0.48602237,115480.0,115470.0,0.70360516]
[1761563776851,0.48602237,115480.0,115470.0,0.85576516]
[1761563777235,0.65921253,115480.0,115470.0,0.09404]
[1761563777439,0.66730653,115480.0,115470.0,0.68252]
[1761563778433,0.66730653,115480.0,115470.0,0.67852]
[1761563778798,0.66730653,115480.0,115470.0,0.68052]
[1761563783212,0.65921253,115480.0,115470.0,0.68052]
[1761563783409,0.65921253,115480.0,115470.0,0.85372516]
[1761563783645,0.65921253,115480.0,115470.0,0.68052]
[1761563786093,0.65921253,115480.0,115470.0,0.67852]
[1761563786297,0.66021253,115480.0,115470.0,0.67852]
[1761563786444,0.66121253,115480.0,115470.0,0.67852]
[1761563787050,0.66121253,115480.0,115470.0,0.58848]
[1761563789279,0.75103154,115480.0,115470.0,0.43632]
[1761563789493,0.75103154,115480.0,115470.0,0.58848]
[1761563790142,0.75913041,115480.0,115470.0,0.58848]
[1761563790377,0.75103154,115480.0,115470.0,0.58848]
[1761563791434,0.75913077,115480.0,115470.0,0.58848]
[1761563792743,0.27331417,115480.0,115470.0,0.58848]
[1761563792958,0.75913077,115480.0,115470.0,0.58848]
[1761563794238,0.75103154,115480.0,115470.0,0.58848]
[1761563797426,1.09912929,115480.0,115470.0,0.58848]
[1761563799173,1.58494589,115480.0,115470.0,0.58848]
[1761563804007,1.6036116,115480.0,115470.0,0.58848]
[1761563805402,1.60361838,115480.0,115470.0,0.58848]
[1761563811121,1.60361838,115480.0,115440.0,0.17435732]
[1761563811122,0.17322016,115460.0,115440.0,0.17435732]
[1761563811339,0.2711437,115460.0,115450.0,0.58848]
[1761563812420,0.27965555,115460.0,115450.0,0.58848]
[1761563812635,0.76647215,115460.0,115450.0,0.58848]
[1761563813977,0.76547215,115460.0,115450.0,0.58848]
[1761563814405,0.76647215,115460.0,115450.0,0.58848]
[1761563814825,0.76947215,115460.0,115450.0,0.58848]
[1761563817808,1.10947215,115460.0,115450.0,0.58848]
[1761563819998,0.64231939,115460.0,115450.0,0.58848]
[1761563820243,1.12813599,115460.0,115450.0,0.58848]
[1761563835600,1.12813453,115460.0,115450.0,0.58848]
[1761563835814,1.0745983,115460.0,115450.0,0.58848]
[1761563838414,1.0745983,115460.0,115450.0,0.43636]
[1761563838641,1.0745983,115460.0,115450.0,0.58844]
[1761563839326,2.30080514,115460.0,115450.0,0.43636]
[1761563839581,2.30080514,115460.0,115450.0,0.58844]
[1761563839789,2.30080803,115460.0,115450.0,0.58844]
[1761563839997,2.31702006,115460.0,115450.0,0.58844]
[1761563840201,2.38248412,115460.0,115450.0,0.58844]
[1761563840610,2.38148412,115460.0,115450.0,0.58844]
[1761563840810,2.37848412,115460.0,115450.0,0.58844]
[1761563840968,2.39048412,115460.0,115450.0,0.58844]
[1761563842499,2.42161269,115460.0,115450.0,0.58844]
[1761563843848,1.12213906,115460.0,115450.0,0.58844]
[1761563844095,1.12213906,115460.0,115450.0,0.38064]
[1761563844849,1.12013906,115460.0,115450.0,0.38064]
[1761563845885,1.11013906,115460.0,115450.0,0.38064]
[1761563846300,1.11113906,115460.0,115450.0,0.38064]
[1761563846710,1.11313906,115460.0,115450.0,0.38064]
[1761563847396,1.60133506,115460.0,115450.0,0.38064]
[1761563847927,1.69115407,115460.0,115450.0,0.38064]
[1761563848383,1.64916439,115460.0,115450.0,0.38064]
[1761563848603,1.63320108,115460.0,115450.0,0.38064]
[1761563849357,1.54338207,115460.0,115450.0,0.38064]
[1761563849975,1.57452629,115460.0,115450.0,0.38064]
[1761563850385,1.54338207,115460.0,115450.0,0.38064]
[1761563855335,1.0942017,115460.0,115450.0,0.38064]
[1761563855542,1.21888307,115460.0,115450.0,0.38064]
[1761563855747,1.21570007,115460.0,115450.0,0.38064]
[1761563857493,1.24684429,115460.0,115450.0,0.38064]
[1761563857919,1.2648457,115460.0,115450.0,0.38064]
[1761563858334,1.24684429,115460.0,115450.0,0.38064]
[1761563868007,1.24684841,115460.0,115450.0,0.38064]
[1761563868499,1.22349325,115460.0,115450.0,0.38064]
[1761563872434,1.22350772,115460.0,115450.0,0.38064]
[1761563875429,1.25969,115460.0,115450.0,0.38064]
[1761563875853,1.34950901,115460.0,115450.0,0.38064]
[1761563878295,1.37551003,115460.0,115450.0,0.38064]
[1761563880455,1.8077904,115460.0,115450.0,0.38064]
[1761563880689,1.69059716,115450.0,115440.0,0.00110731]
[1761563880909,2.53053803,115450.0,115440.0,0.22978731]
[1761563881166,2.67988569,115450.0,115440.0,0.38182731]
[1761563881387,0.1732952,115410.0,115380.0,0.18196421]
[1761563881613,0.18140645,115410.0,115400.0,0.22868]
[1761563882285,0.1732952,115410.0,115400.0,0.25468373]
[1761563882506,0.1732952,115410.0,115400.0,0.40672373]
[1761563883348,0.1732952,115410.0,115400.0,0.40972373]
[1761563884193,0.1732952,115410.0,115400.0,0.58303395]
[1761563885904,0.18195781,115420.0,115400.0,0.58303395]
[1761563886128,0.27987885,115420.0,115400.0,0.58303395]
[1761563886335,0.1732952,115410.0,115400.0,0.55703022]
[1761563886946,0.1732952,115410.0,115400.0,0.58303395]
[1761563887462,0.1732952,115410.0,115400.0,0.79173775]
[1761563887653,0.1732952,115410.0,115400.0,0.61842753]
[1761563888076,0.1732952,115410.0,115400.0,0.61542753]
[1761563888278,0.1732952,115410.0,115400.0,0.62042753]
[1761563888590,0.1732952,115410.0,115400.0,0.61542753]
[1761563888999,0.1732952,115410.0,115400.0,0.62042753]
[1761563891448,0.1732952,115410.0,115400.0,0.79373775]
[1761563891967,0.1732952,115410.0,115400.0,0.03182753]
[1761563892170,0.69331081,115410.0,115400.0,0.46842753]
[1761563892462,0.61367035,115410.0,115400.0,0.62046753]
[1761563892651,1.04348936,115410.0,115400.0,0.5944638]
[1761563897787,1.58457077,115410.0,115400.0,0.5944638]
[1761563901972,1.58457077,115410.0,115400.0,0.2137438]
[1761563902175,1.58457077,115410.0,115400.0,0.5945438]
[1761563902831,1.58457077,115410.0,115400.0,0.5895438]
[1761563903037,1.58757077,115410.0,115400.0,0.5895438]
[1761563903254,1.58857077,115410.0,115400.0,0.5895438]
[1761563909103,1.60379739,115410.0,115400.0,0.5895438]
[1761563911012,1.62246549,115410.0,115400.0,0.5895438]
[1761563911375,1.58857077,115410.0,115400.0,0.5895438]
[1761563913483,1.60724034,115410.0,115400.0,0.5895438]
[1761563916343,1.60724034,115410.0,115400.0,0.4374638]
[1761563916551,1.60724034,115410.0,115400.0,0.5895438]
[1761563917399,1.60724034,115410.0,115400.0,0.5895838]